fUSD/lending_fUSD_20250513
["ID","MTS","AMOUNT","RATE_DAILY","PERIOD"]
[360917501,1747144248452,-2568.28,0.00010996,2]
[360917502,1747144248462,-409.27,0.00010996,2]
[360917503,1747144248471,-802.16,0.00010996,2]
[360917504,1747144248481,-1584.32,0.00010996,2]
[360917505,1747144248491,-400.0,0.00010996,2]
[360917506,1747144248501,-634.13,0.00010996,2]
[360917507,1747144248511,-503.73,0.00010996,2]
[360917508,1747144248521,-1595.6,0.00010996,2]
[360917509,1747144248531,-878.26,0.00010996,2]
[360917510,1747144248541,-815.92,0.00010996,2]
[360917511,1747144248551,-400.0,0.00010996,2]
[360917512,1747144248561,-917.6,0.00010996,2]
[360917513,1747144248571,-400.0,0.00010996,2]
[360917514,1747144248581,-400.0,0.00010996,2]
[360917515,1747144248590,-400.0,0.00010996,2]
[360917516,1747144248600,-529.82,0.00010996,2]
[360917517,1747144248609,-400.0,0.00010996,2]
[360917518,1747144248619,-424.51,0.00010996,2]
[360917519,1747144248629,-400.0,0.00010996,2]
[360917520,1747144248639,-668.36,0.00010996,2]
[360917521,1747144248650,-862.47,0.00010996,2]
[360917522,1747144248660,-400.0,0.00010996,2]
[360917523,1747144248670,-520.7,0.00010996,2]
[360917524,1747144248680,-400.0,0.00010996,2]
[360917525,1747144248690,-400.0,0.00010996,2]
[360917526,1747144248699,-400.0,0.00010996,2]
[360917527,1747144248709,-500.0,0.00010996,2]
[360917528,1747144248719,-489.3279411,0.00010996,2]
[360917529,1747144248729,-1059.41,0.00010996,2]
[360917530,1747144248738,-1790.17,0.00010996,2]
[360917531,1747144248748,-2848.3,0.00010996,2]
[360917532,1747144248757,-400.0,0.00010996,2]
[360917533,1747144248767,-400.0,0.00010996,2]
[360917534,1747144248776,-400.0,0.00010996,2]
[360917535,1747144248786,-1131.71,0.00010996,2]
[360917536,1747144248796,-400.0,0.00010996,2]
[360917537,1747144248806,-400.0,0.00010996,2]
[360917538,1747144248816,-400.0,0.00010996,2]
[360917539,1747144248825,-500.0,0.00010997,2]
[360917540,1747144248835,-1559.74,0.00010997,2]
[360917541,1747144248845,-958.26,0.00010997,2]
[360917542,1747144248855,-4007.29,0.00010997,2]
[360917543,1747144248865,-400.0,0.00010997,2]
[360917544,1747144248876,-1421.54,0.00010997,2]
[360917545,1747144248886,-412.35,0.00010997,2]
[360917546,1747144248898,-520.7,0.00010997,2]
[360917547,1747144248907,-1753.4,0.00010997,2]
[360917548,1747144248918,-1016.65,0.00010997,2]
[360917549,1747144248928,-500.0,0.00010997,2]
[360917550,1747144248938,-1167.36,0.00010997,2]
[360917551,1747144248948,-551.69,0.00010997,2]
[360917552,1747144249204,-711.32,0.00010997,2]
[360917553,1747144249214,-1791.35,0.00010997,2]
[360917554,1747144249224,-2461.73,0.00010997,2]
[360917555,1747144249234,-1653.76,0.00010997,2]
[360917556,1747144249244,-1659.34,0.00010997,2]
[360917557,1747144249254,-2405.74,0.00010997,2]
[360917558,1747144249264,-268.64203244,0.00010999,2]
[360917559,1747144249275,-400.0,0.00010999,2]
[360917560,1747144249285,-1000.0,0.00010999,2]
[360917561,1747144249295,-1000.0,0.00010999,2]
[360917562,1747144249306,-1000.0,0.00010999,2]
[360917563,1747144249316,-1000.0,0.00010999,2]
[360917564,1747144249326,-1000.0,0.00010999,2]
[360917565,1747144249336,-1000.0,0.00010999,2]
[360917566,1747144249346,-1000.0,0.00010999,2]
[360917567,1747144249356,-1000.0,0.00010999,2]
[360917568,1747144249366,-1000.0,0.00010999,2]
[360917569,1747144249375,-1000.0,0.00010999,2]
[360917570,1747144249386,-1000.0,0.00010999,2]
[360917571,1747144249396,-1000.0,0.00010999,2]
[360917572,1747144249406,-1000.0,0.00010999,2]
[360917573,1747144249416,-1000.0,0.00010999,2]
[360917574,1747144249426,-538.36966159,0.00010999,2]
[360917575,1747144249436,-520.7,0.00010999,2]
[360917576,1747144249446,-520.7,0.00010999,2]
[360917577,1747144249456,-520.7,0.00010999,2]
[360917578,1747144249466,-520.7,0.00010999,2]
[360917579,1747144249476,-520.7,0.00010999,2]
[360917580,1747144249486,-520.7,0.00010999,2]
[360917581,1747144249496,-520.7,0.00010999,2]
[360917582,1747144249507,-520.7,0.00010999,2]
[360917583,1747144249516,-520.7,0.00010999,2]
[360917584,1747144249526,-520.7,0.00010999,2]
[360917585,1747144249536,-520.7,0.00010999,2]
[360917586,1747144249546,-520.7,0.00010999,2]
[360917587,1747144249556,-520.7,0.00010999,2]
[360917588,1747144249566,-520.7,0.00010999,2]
[360917589,1747144249576,-500.0,0.00010999,2]
[360917590,1747144249585,-500.0,0.00010999,2]
[360917591,1747144249595,-500.0,0.00010999,2]
[360917592,1747144249604,-500.0,0.00010999,2]
[360917593,1747144249614,-500.0,0.00010999,2]
[360917594,1747144249624,-500.0,0.00010999,2]
[360917595,1747144249633,-500.0,0.00010999,2]
[360917596,1747144249643,-500.0,0.00010999,2]
[360917597,1747144249654,-500.0,0.00010999,2]
[360917598,1747144249663,-500.0,0.00010999,2]
[360917599,1747144249673,-500.0,0.00010999,2]
[360917600,1747144249683,-500.0,0.00010999,2]
[360917601,1747144249693,-500.0,0.00010999,2]
[360917602,1747144249702,-500.0,0.00010999,2]
[360917603,1747144249711,-500.0,0.00010999,2]
[360917604,1747144249721,-500.0,0.00010999,2]
[360917605,1747144249730,-500.0,0.00010999,2]
[360917606,1747144249741,-300.0,0.00010999,2]
[360917607,1747144249750,-300.0,0.00010999,2]
[360917608,1747144249760,-222.08274684,0.00011,2]
[360917609,1747144249770,-43627.8449223,0.00011,2]
[360917610,1747144249780,-1803982.81844891,0.00011,2]
[360917611,1747144249789,-28473.83697706,0.00011,2]
[360917612,1747144249799,-2947.63269531,0.00011,2]
[360917613,1747144249808,-211.88643064,0.00011,2]
[360917614,1747144249818,-2498717.66006076,0.00011,2]
[360917615,1747144249879,-262.5,0.00011,2]
[360917616,1747144250929,-252.58751994,0.00010994,2]
[360917617,1747144251127,-147.41248006,0.00010994,2]
[360917618,1747144251137,-380.59339473,0.00010995,2]
[360917619,1747144251899,-400.0,0.00010994,2]
[360917620,1747144251909,-1190.08660527,0.00010995,2]
[360917621,1747144251918,-400.0,0.00010995,2]
[360917622,1747144251928,-209.84355,0.00010997,2]
[360917623,1747144251937,-7058.0610373,0.00011,2]
[360917624,1747144251967,-28826.82458155,0.00011,2]
[360917625,1747144251978,-3337.59663473,0.00011,2]
[360917626,1747144251989,-10352.07199999,0.00011,2]
[360917627,1747144252000,-12766.16689785,0.00011,2]
[360917628,1747144252035,-324042.70847992,0.00011,2]
[360917629,1747144355676,1333.0,0.00026137,120]
[360917630,1747144490386,-188.78180977,0.00010229,2]
[360917631,1747144494088,-179.91615358,0.00010229,2]
[360917632,1747144494119,-120.61034824,0.00010229,2]
[360917633,1747144495653,-160.34103211,0.00010229,2]
[360917634,1747144499818,-207.71292155,0.00010229,2]
[360917635,1747144499841,-117.9055687,0.00010231,2]
[360917636,1747144501255,-315.39316894,0.00010231,2]
[360917637,1747144503840,-333.85787659,0.00010231,2]
[360917638,1747144505892,-232.84338577,0.00010231,2]
[360917639,1747144505916,-126.97731204,0.00010247,2]
[360917640,1747144508548,-266.41268796,0.00010247,2]
[360917641,1747144571036,172.04,8.152e-05,2]
[360917642,1747144598902,150.0,0.000135,5]
[360917644,1747144627636,-300.0,0.0001017,2]
[360917645,1747144629777,-200.0,0.0001017,2]
[360917646,1747144633039,-379.10134542,0.0001017,2]
[360917647,1747144634513,-179.04751958,0.0001017,2]
[360917648,1747144636771,-66.421135,0.0001017,2]
[360917649,1747144640970,-200.0,0.000102,3]
[360917650,1747144640995,-98.69527275,0.000103,3]
[360917651,1747144642989,-284.88359225,0.000103,3]
[360917652,1747144646339,-116.421135,0.000103,3]
[360917653,1747144646364,-173.09903441,0.000104,3]
[360917654,1747144649110,-237.21273833,0.000104,3]
[360917655,1747144748248,-345.52393565,0.00010084,2]
[360917656,1747144751107,-215.95880197,0.00010084,2]
[360917657,1747144755015,-172.04,0.00010084,2]
[360917658,1747144757048,-327.13,0.00010068,2]
[360917659,1747144757071,-166.59042292,0.00010084,2]
[360917660,1747144907282,-211.88197314,9.995e-05,2]
[360917661,1747145142023,1333.0,0.00026137,120]
[360917678,1747145321407,1217.11,8.219e-05,2]
[360917698,1747145431527,-1000.0,9.464e-05,2]
[360917699,1747145431537,-475.9,9.48e-05,2]
[360917700,1747145431547,-351.06,9.48e-05,2]
[360917701,1747145431561,-250.0,9.713e-05,2]
[360917702,1747145431570,-500.0,9.713e-05,2]
[360917703,1747145431580,-300.0,9.748e-05,2]
[360917704,1747145431590,-1200.0,9.748e-05,2]
[360917705,1747145431601,-300.0,9.748e-05,2]
[360917706,1747145431610,-5956.23620001,9.749e-05,2]
[360917707,1747145431672,-353.86749234,9.749e-05,2]
[360917708,1747145431683,-351.15526074,9.749e-05,2]
[360918256,1747145437468,-488.66430191,9.749e-05,2]
[360918258,1747145437480,-814.976745,9.749e-05,2]
[360918260,1747145437491,-152.03,9.959e-05,2]
[360918263,1747145437500,-152.03,9.968e-05,2]
[360918265,1747145437510,-152.03,9.978e-05,2]
[360918267,1747145437519,-152.03,9.988e-05,2]
[360918269,1747145437529,-404.57802686,9.995e-05,2]
[360918271,1747145437539,-152.03,9.998e-05,2]
[360918273,1747145437550,-152.03,0.00010008,2]
[360918275,1747145437562,-207.4,0.00010062,2]
[360918277,1747145437573,-197.39,0.00010064,2]
[360918279,1747145437582,-150.0,0.00010067,2]
[360918281,1747145437594,-7308.6385949,0.00010068,2]
[360918283,1747145437606,-16591.3614051,0.00010068,2]
[360918285,1747145437615,-190.7,0.00010068,2]
[360918287,1747145437625,-131.62683946,0.00010084,2]
[360918289,1747145437635,-1721.61,0.00010094,2]
[360918291,1747145437644,-200.0,0.000102,3]
[360918293,1747145437654,-2947.63269531,0.00010247,2]
[360918295,1747145437663,-211.88643064,0.00010247,2]
[360918297,1747145437672,-500.0,0.000103,3]
[360918298,1747145437682,-700.0,0.000104,3]
[360918300,1747145437691,-1217.11,0.00010448,2]
[360918302,1747145437701,-166.14,0.00010488,2]
[360918304,1747145437713,-1000.0,0.000105,3]
[360918306,1747145437723,-1200.0,0.000106,3]
[360918308,1747145437732,-1000.0,0.00010647,2]
[360918310,1747145437741,-200.0,0.000107,3]
[360918312,1747145437751,-420.0,0.00010723,2]
[360918314,1747145437761,-1680.0,0.00010723,2]
[360918316,1747145437770,-317.5519,0.00010794,2]
[360918318,1747145437780,-948.38072949,0.00010794,2]
[360918321,1747145437798,-642.54447051,0.00010794,2]
[360918323,1747145437808,-200.0,0.000108,3]
[360918325,1747145437817,-5288.1363,0.00010893,2]
[360918327,1747145437826,-13845.4337,0.00010893,2]
[360918329,1747145437835,-943.2077,0.00010893,2]
[360918331,1747145437844,-183.4647,0.00010893,2]
[360918333,1747145437853,-1975.0323,0.00010893,2]
[360918335,1747145437863,-2586.0271,0.00010894,2]
[360918336,1747145437872,-8590.6501,0.00010894,2]
[360918338,1747145437881,-168.5791,0.00010894,2]
[360918340,1747145437891,-10891.67206458,0.00010894,2]
[360918348,1747145437952,-11362.11317999,0.00010894,2]
[360918350,1747145437964,-542.48329694,0.00010894,2]
[360918370,1747145438138,-1416.62224569,0.00010894,2]
[360918474,1747145439722,-3827.38950018,0.00010894,2]
[360918475,1747145439734,-3200.26080105,0.00010894,2]
[360918476,1747145440005,-36.62311301,0.00010894,2]
[360918477,1747145440016,-9562.00449856,0.00010894,2]
[360918478,1747145440025,-500.0,0.00010894,2]
[360918479,1747145440034,-3090.7153,0.00010894,2]
[360918480,1747145440043,-816.64134867,0.00010894,2]
[360918481,1747145440068,-183.35865133,0.00010894,2]
[360918482,1747145440077,-1000.0,0.00010894,2]
[360918483,1747145440086,-2500.0,0.00010894,2]
[360918484,1747145440095,-170.71933485,0.00010894,2]
[360918485,1747145440104,-170.71933485,0.00010897,2]
[360918486,1747145440113,-488.8167467,0.000109,2]
[360918487,1747145440122,-200.0,0.000109,3]
[360918488,1747145440131,-170.71933485,0.000109,2]
[360918489,1747145440140,-161.27833798,0.000109,2]
[360918490,1747145440149,-161.27833797,0.000109,2]
[360918491,1747145440158,-150.0,0.00010959,2]
[360918492,1747145440167,-500.0,0.00010973,2]
[360918493,1747145440176,-500.0,0.00010973,2]
[360918494,1747145440186,-500.0,0.00010973,2]
[360918495,1747145440195,-400.0,0.00010992,2]
[360918496,1747145440204,-407.69821418,0.00010992,2]
[360918497,1747145440215,-400.0,0.00010992,2]
[360918498,1747145440224,-400.0,0.00010992,2]
[360918499,1747145440233,-400.0,0.00010992,2]
[360918500,1747145440242,-400.0,0.00010992,2]
[360918501,1747145440251,-400.0,0.00010992,2]
[360918502,1747145440261,-400.0,0.00010992,2]
[360918503,1747145440270,-1021.53,0.00010992,2]
[360918504,1747145440279,-400.0,0.00010992,2]
[360918505,1747145440289,-400.0,0.00010992,2]
[360918506,1747145440298,-400.0,0.00010992,2]
[360918507,1747145440307,-400.0,0.00010992,2]
[360918508,1747145440317,-507.53,0.00010992,2]
[360918509,1747145440326,-443.17,0.00010992,2]
[360918510,1747145440335,-399.72421895,0.00010992,2]
[360918511,1747145440345,-1247.44,0.00010992,2]
[360918512,1747145440354,-400.0,0.00010992,2]
[360918513,1747145440363,-3030.21,0.00010992,2]
[360918514,1747145440373,-400.0,0.00010992,2]
[360918515,1747145440382,-400.0,0.00010992,2]
[360918516,1747145440391,-791.023451,0.00010992,2]
[360918517,1747145440401,-400.0,0.00010992,2]
[360918518,1747145440410,-400.0,0.00010992,2]
[360918519,1747145440419,-931.64,0.00010992,2]
[360918520,1747145440428,-543.06072182,0.00010992,2]
[360918521,1747145440437,-930.89,0.00010992,2]
[360918522,1747145440447,-502.01813292,0.00010992,2]
[360918523,1747145440456,-568.55,0.00010992,2]
[360918524,1747145440467,-2774.538,0.00010993,2]
[360918525,1747145440476,-155.468,0.00010993,2]
[360918526,1747145440486,-400.0,0.00010993,2]
[360918527,1747145440495,-400.0,0.00010993,2]
[360918528,1747145440505,-400.0,0.00010993,2]
[360918529,1747145440514,-400.0,0.00010993,2]
[360918530,1747145440523,-400.0,0.00010993,2]
[360918531,1747145440532,-3392.2461095,0.00010993,2]
[360918532,1747145440562,-2720.89171875,0.00010894,2]
[360918533,1747145440572,-970.4238905,0.00010993,2]
[360918534,1747145440581,-400.0,0.00010993,2]
[360918535,1747145440591,-400.0,0.00010993,2]
[360918536,1747145440601,-200.0,0.00010993,2]
[360918537,1747145440611,-563.68,0.00010993,2]
[360918538,1747145440620,-400.0,0.00010993,2]
[360918539,1747145440630,-400.0,0.00010993,2]
[360918540,1747145440640,-1334.3,0.00010993,2]
[360918542,1747145440650,-400.0,0.00010993,2]
[360918544,1747145440659,-400.0,0.00010993,2]
[360918546,1747145440668,-436.38,0.00010993,2]
[360918548,1747145440677,-400.0,0.00010993,2]
[360918550,1747145440686,-400.0,0.00010993,2]
[360918552,1747145440696,-400.0,0.00010993,2]
[360918554,1747145440706,-400.0,0.00010993,2]
[360918555,1747145440717,-400.0,0.00010993,2]
[360918557,1747145440727,-400.0,0.00010993,2]
[360918559,1747145440736,-400.0,0.00010993,2]
[360918561,1747145440746,-400.0,0.00010993,2]
[360918563,1747145440755,-988.58,0.00010993,2]
[360918565,1747145440765,-400.0,0.00010993,2]
[360918566,1747145440775,-400.0,0.00010993,2]
[360918567,1747145440784,-400.0,0.00010993,2]
[360918568,1747145440793,-400.0,0.00010993,2]
[360918569,1747145440803,-400.0,0.00010993,2]
[360918570,1747145440813,-400.0,0.00010993,2]
[360918571,1747145440823,-400.0,0.00010993,2]
[360918572,1747145440832,-428.72,0.00010993,2]
[360918573,1747145440842,-400.0,0.00010993,2]
[360918574,1747145440851,-400.0,0.00010993,2]
[360918575,1747145440861,-487.35,0.00010993,2]
[360918576,1747145440870,-400.0,0.00010993,2]
[360918577,1747145440879,-400.0,0.00010993,2]
[360918578,1747145440889,-400.0,0.00010993,2]
[360918579,1747145440898,-400.0,0.00010993,2]
[360918580,1747145440907,-250.0,0.00010993,2]
[360918581,1747145440916,-400.0,0.00010993,2]
[360918582,1747145440926,-400.0,0.00010993,2]
[360918583,1747145440935,-484.4755416,0.00010993,2]
[360918584,1747145440944,-400.0,0.00010993,2]
[360918585,1747145440954,-402.68788391,0.00010993,2]
[360918586,1747145440964,-400.0,0.00010993,2]
[360918587,1747145440973,-400.0,0.00010993,2]
[360918588,1747145440982,-400.0,0.00010993,2]
[360918589,1747145440992,-400.0,0.00010993,2]
[360918590,1747145441002,-1632.98,0.00010993,2]
[360918591,1747145441011,-400.0,0.00010993,2]
[360918592,1747145441021,-400.0,0.00010993,2]
[360918593,1747145441030,-681.55,0.00010993,2]
[360918594,1747145441039,-400.0,0.00010993,2]
[360918595,1747145441049,-400.0,0.00010993,2]
[360918596,1747145441059,-762.7,0.00010993,2]
[360918597,1747145441069,-5061.36791,0.00010993,2]
[360918598,1747145441079,-507.422338,0.00010993,2]
[360918599,1747145441088,-400.0,0.00010993,2]
[360918600,1747145441098,-400.0,0.00010993,2]
[360918601,1747145441107,-542.75,0.00010993,2]
[360918602,1747145441116,-400.0,0.00010993,2]
[360918603,1747145441127,-487.96,0.00010993,2]
[360918604,1747145441138,-708.78,0.00010993,2]
[360918605,1747145441148,-400.0,0.00010993,2]
[360918606,1747145441157,-400.0,0.00010993,2]
[360918607,1747145441166,-400.0,0.00010993,2]
[360918608,1747145441176,-400.0,0.00010993,2]
[360918609,1747145441186,-400.0,0.00010993,2]
[360918610,1747145441196,-400.0,0.00010993,2]
[360918611,1747145441206,-400.0,0.00010993,2]
[360918612,1747145441217,-400.0,0.00010993,2]
[360918613,1747145441226,-400.0,0.00010993,2]
[360918614,1747145441235,-400.0,0.00010993,2]
[360918615,1747145441245,-656.11,0.00010993,2]
[360918616,1747145441254,-400.0,0.00010993,2]
[360918617,1747145441263,-400.0,0.00010993,2]
[360918618,1747145441272,-400.0,0.00010993,2]
[360918619,1747145441282,-3751.68,0.00010993,2]
[360918620,1747145441292,-431.35102983,0.00010993,2]
[360918621,1747145441301,-400.0,0.00010993,2]
[360918622,1747145441310,-400.0,0.00010993,2]
[360918623,1747145441320,-400.0,0.00010993,2]
[360918624,1747145441330,-400.0,0.00010993,2]
[360918625,1747145441339,-504.06,0.00010993,2]
[360918626,1747145441348,-2971.21,0.00010993,2]
[360918627,1747145441359,-400.0,0.00010993,2]
[360918628,1747145441368,-400.0,0.00010993,2]
[360918629,1747145441377,-400.0,0.00010993,2]
[360918630,1747145441387,-400.0,0.00010993,2]
[360918631,1747145441396,-792.86,0.00010993,2]
[360918632,1747145441405,-1424.8,0.00010993,2]
[360918633,1747145441415,-400.0,0.00010993,2]
[360918634,1747145441424,-400.0,0.00010993,2]
[360918635,1747145441434,-400.0,0.00010993,2]
[360918636,1747145441443,-400.0,0.00010993,2]
[360918637,1747145441452,-400.0,0.00010993,2]
[360918638,1747145441461,-273.13079164,0.00010993,2]
[360918639,1747145441676,-1289.38,0.00010993,2]
[360918640,1747145441755,-400.0,0.00010993,2]
[360918641,1747145441763,-400.0,0.00010993,2]
[360918642,1747145441772,-400.0,0.00010993,2]
[360918643,1747145441779,-400.0,0.00010993,2]
[360918644,1747145441788,-400.0,0.00010993,2]
[360918645,1747145441797,-400.0,0.00010993,2]
[360918646,1747145441805,-400.0,0.00010993,2]
[360918647,1747145441813,-346.38813261,0.00010993,2]
[360918648,1747145441821,-400.0,0.00010993,2]
[360918649,1747145441829,-418.69380868,0.00010993,2]
[360918650,1747145441837,-400.0,0.00010993,2]
[360918651,1747145441846,-404.76007591,0.00010993,2]
[360918652,1747145441854,-442.54,0.00010993,2]
[360918653,1747145441862,-1450.53,0.00010993,2]
[360918654,1747145441870,-156.58359271,0.00010993,2]
[360918655,1747145441878,-400.0,0.00010993,2]
[360918656,1747145441886,-400.0,0.00010993,2]
[360918657,1747145441894,-415.23204008,0.00010993,2]
[360918658,1747145441902,-1672.08,0.00010993,2]
[360918659,1747145441910,-400.0,0.00010993,2]
[360918660,1747145441917,-400.0,0.00010993,2]
[360918661,1747145441923,-400.0,0.00010993,2]
[360918662,1747145441931,-400.0,0.00010993,2]
[360918663,1747145441939,-400.0,0.00010993,2]
[360918664,1747145441947,-400.0,0.00010993,2]
[360918665,1747145441955,-588.31,0.00010993,2]
[360918666,1747145441962,-1461.4,0.00010993,2]
[360918667,1747145441971,-400.0,0.00010993,2]
[360918668,1747145441979,-400.0,0.00010993,2]
[360918669,1747145441987,-1050.53,0.00010993,2]
[360918670,1747145441993,-400.0,0.00010993,2]
[360918671,1747145442001,-400.0,0.00010993,2]
[360918672,1747145442008,-400.0,0.00010993,2]
[360918673,1747145442016,-612.66,0.00010993,2]
[360918674,1747145442024,-457.92,0.00010993,2]
[360918675,1747145442031,-2354.4,0.00010993,2]
[360918676,1747145442039,-467.84,0.00010993,2]
[360918677,1747145442046,-400.0,0.00010993,2]
[360918678,1747145442053,-400.0,0.00010993,2]
[360918679,1747145442060,-400.0,0.00010993,2]
[360918680,1747145442067,-400.0,0.00010993,2]
[360918681,1747145442074,-692.14,0.00010993,2]
[360918682,1747145442081,-400.0,0.00010993,2]
[360918683,1747145442088,-832.33,0.00010993,2]
[360918684,1747145442096,-400.0,0.00010993,2]
[360918685,1747145442103,-400.0,0.00010993,2]
[360918686,1747145442111,-2242.14,0.00010993,2]
[360918687,1747145442117,-434.5,0.00010993,2]
[360918688,1747145442123,-400.0,0.00010993,2]
[360918689,1747145442130,-467.04,0.00010993,2]
[360918690,1747145442136,-674.98,0.00010993,2]
[360918691,1747145442142,-780.96,0.00010993,2]
[360918692,1747145442150,-400.0,0.00010993,2]
[360918693,1747145442157,-609.7,0.00010993,2]
[360918694,1747145442164,-400.0,0.00010993,2]
[360918695,1747145442170,-400.0,0.00010993,2]
[360918696,1747145442177,-400.0,0.00010993,2]
[360918697,1747145442183,-400.0,0.00010993,2]
[360918698,1747145442190,-475.37,0.00010993,2]
[360918699,1747145442196,-1568.79,0.00010993,2]
[360918700,1747145442203,-853.52,0.00010993,2]
[360918701,1747145442211,-400.0,0.00010993,2]
[360918702,1747145442218,-400.0,0.00010993,2]
[360918703,1747145442227,-791.02,0.00010993,2]
[360918704,1747145442236,-400.0,0.00010993,2]
[360918705,1747145442246,-400.0,0.00010993,2]
[360918706,1747145442255,-159.76915176,0.00010993,2]
[360918707,1747145442264,-400.0,0.00010993,2]
[360918708,1747145442273,-2905.84,0.00010993,2]
[360918709,1747145442283,-564.9,0.00010993,2]
[360918710,1747145442292,-857.12,0.00010993,2]
[360918711,1747145442301,-400.0,0.00010993,2]
[360918712,1747145442310,-1394.25,0.00010993,2]
[360918713,1747145442319,-400.0,0.00010993,2]
[360918714,1747145442328,-400.0,0.00010993,2]
[360918715,1747145442337,-712.42,0.00010993,2]
[360918716,1747145442347,-400.0,0.00010993,2]
[360918717,1747145442355,-400.0,0.00010993,2]
[360918718,1747145442364,-5228.13,0.00010993,2]
[360918719,1747145442374,-400.0,0.00010993,2]
[360918720,1747145442383,-611.61,0.00010993,2]
[360918721,1747145442392,-400.0,0.00010993,2]
[360918722,1747145442403,-448.13,0.00010993,2]
[360918723,1747145442412,-400.0,0.00010993,2]
[360918724,1747145442421,-400.0,0.00010993,2]
[360918725,1747145442432,-1473.74,0.00010993,2]
[360918726,1747145442442,-883.22,0.00010993,2]
[360918727,1747145442451,-549.29,0.00010993,2]
[360918728,1747145442459,-400.0,0.00010993,2]
[360918729,1747145442470,-400.0,0.00010993,2]
[360918730,1747145442479,-845.58,0.00010993,2]
[360918731,1747145442488,-1042.35,0.00010993,2]
[360918732,1747145442497,-600.12,0.00010993,2]
[360918733,1747145442506,-2185.24,0.00010993,2]
[360918734,1747145442515,-400.0,0.00010993,2]
[360918735,1747145442525,-432.76,0.00010993,2]
[360918736,1747145442534,-400.0,0.00010993,2]
[360918737,1747145442543,-406.3,0.00010993,2]
[360918738,1747145442557,-937.12,0.00010993,2]
[360918739,1747145442566,-447.25,0.00010993,2]
[360918740,1747145442576,-1397.51,0.00010993,2]
[360918741,1747145442585,-400.0,0.00010993,2]
[360918742,1747145442595,-1157.97,0.00010993,2]
[360918743,1747145442604,-400.0,0.00010993,2]
[360918744,1747145442613,-400.0,0.00010993,2]
[360918745,1747145442623,-400.0,0.00010993,2]
[360918746,1747145442633,-400.0,0.00010993,2]
[360918747,1747145442642,-400.0,0.00010993,2]
[360918748,1747145442652,-4676.58,0.00010993,2]
[360918749,1747145442661,-2650.0,0.00010993,2]
[360918750,1747145442670,-444.6,0.00010993,2]
[360918751,1747145442679,-614.07,0.00010993,2]
[360918752,1747145442689,-2380.62,0.00010993,2]
[360918753,1747145442698,-400.0,0.00010993,2]
[360918754,1747145442707,-400.0,0.00010993,2]
[360918755,1747145442720,-400.0,0.00010993,2]
[360918756,1747145442729,-400.0,0.00010993,2]
[360918757,1747145442739,-400.0,0.00010993,2]
[360918758,1747145442749,-400.0,0.00010993,2]
[360918759,1747145442758,-400.0,0.00010993,2]
[360918760,1747145442767,-3150.0,0.00010993,2]
[360918761,1747145442777,-150.0,0.00010993,2]
[360918762,1747145442787,-1400.53,0.00010993,2]
[360918763,1747145442796,-489.44,0.00010993,2]
[360918764,1747145442806,-1080.71,0.00010993,2]
[360918765,1747145442815,-400.0,0.00010993,2]
[360918766,1747145442824,-1178.91,0.00010993,2]
[360918767,1747145442834,-400.0,0.00010993,2]